bitfinex-derivatives/quotes_SOLF0:USTF0_20250808
["timestamp","ask_amount","ask_price","bid_price","bid_amount"]
[1754623268933,3.22,175.08,175.06,5.711]
[1754623273434,3.22,175.08,175.07,5.7108]
[1754623273632,3.22,175.08,175.02,3.17]
[1754623273831,3.22,175.08,175.05,5.7112]
[1754623274029,3.22,175.08,175.05,3.17]
[1754623274232,3.22,175.08,175.02,3.17]
[1754623274425,3.22,175.08,175.05,5.7112]
[1754623274626,8.9307,175.08,175.05,8.8812]
[1754623274836,3.22,175.07,175.05,8.8812]
[1754623275133,3.22,175.06,175.05,8.8812]
[1754623276233,3.22,175.08,175.06,5.711]
[1754623276433,3.22,175.07,175.06,3.17]
[1754623277237,3.22,175.07,175.06,8.8811]
[1754623278133,3.22,175.09,175.03,3.17]
[1754623278334,3.22,175.09,175.05,3.17]
[1754623279036,3.22,175.09,175.08,8.8805]
[1754623281134,3.22,175.11,175.08,3.17]
[1754623281334,3.22,175.13,175.08,6.39907123]
[1754623281536,3.22,175.12,175.08,3.22907123]
[1754623281740,3.22,175.14,175.1,3.22907123]
[1754623282033,3.22,175.15,175.11,3.17]
[1754623282236,3.22,175.15,175.12,5.7089]
[1754623282436,3.22,175.14,175.12,5.7089]
[1754623282835,5.7082,175.15,175.12,5.7089]
[1754623283035,3.22,175.14,175.12,5.7089]
[1754623283435,3.22,175.14,175.13,5.7088]
[1754623284738,3.22,175.14,175.13,8.8788]
[1754623285039,3.22,175.14,175.13,5.7088]
[1754623285435,3.22,175.14,175.12,5.709]
[1754623285637,3.22,175.14,175.12,8.879]
[1754623286935,3.22907123,175.17,175.13,5.7088]
[1754623287141,3.22,175.16,175.13,8.8788]
[1754623287846,8.928,175.16,175.13,8.8788]
[1754623288046,3.22,175.15,175.13,8.8788]
[1754623288235,3.22,175.15,175.14,5.7085]
[1754623288439,3.22,175.18,175.12,3.22907123]
[1754623288639,3.22,175.18,175.15,3.17]
[1754623288846,3.22,175.18,175.17,5.7075]
[1754623289045,3.22,175.18,175.17,8.8775]
[1754623289443,3.22,175.38,175.17,3.17]
[1754623289839,3.22,175.3,175.17,3.17]
[1754623290047,6.44907123,175.3,175.23,3.17]
[1754623290344,3.22,175.29,175.23,3.17]
[1754623290944,3.22,175.29,175.24,5.7052]
[1754623291144,3.22,175.29,175.23,3.17]
[1754623291544,3.22,175.29,175.24,5.7051]
[1754623291747,3.22,175.29,175.24,8.7951]
[1754623292141,0.9933066,175.31,175.24,3.22907123]
[1754623292346,3.15,175.35,175.31,3.09]
[1754623292546,3.15,175.4,175.34,3.22907123]
[1754623292740,3.15,175.4,175.34,6.31907123]
[1754623293144,3.15,175.39,175.36,3.09]
[1754623293440,3.15,175.37,175.36,3.09]
[1754623293646,0.99256999,175.43,175.36,3.09]
[1754623293938,3.15,175.4,175.37,3.09]
[1754623294137,3.15,175.38,175.36,3.09]
[1754623294347,4.22164122,175.43,175.36,3.09]
[1754623294543,3.15,175.38,175.25,3.09]
[1754623294851,3.15,175.41,175.34,6.31907123]
[1754623295043,3.15,175.37,175.32,3.09]
[1754623295346,3.15,175.36,175.34,3.09]
[1754623295851,3.15,175.38,175.24,17.30147054]
[1754623296139,107.26,175.42,175.33,3.09]
[1754623296341,3.15,175.41,175.34,3.22907123]
[1754623296546,3.15,175.41,175.35,3.09]
[1754623296938,5.7007,175.38,175.33,3.22907123]
[1754623297136,3.15,175.37,175.33,6.31907123]
[1754623297340,3.15,175.37,175.31,6.31907123]
[1754623297640,3.15,175.35,175.33,3.09]
[1754623298146,3.15,175.39,175.34,3.09]
[1754623298342,3.15,175.38,175.34,3.09]
[1754623298543,5.7004,175.39,175.34,3.09]
[1754623298743,3.15,175.37,175.34,3.09]
[1754623298938,3.15,175.41,175.35,3.22907123]
[1754623299138,3.15,175.42,175.37,3.22907123]
[1754623299344,3.15,175.45,175.4,3.09]
[1754623299647,3.15,175.45,175.39,3.09]
[1754623300242,3.15,175.43,175.39,3.09]
[1754623300645,5.24455595,175.41,175.24,17.30147054]
[1754623300848,3.15,175.4,175.32,3.09]
[1754623301050,3.15,175.38,175.32,3.09]
[1754623301242,3.15,175.4,175.33,3.09]
[1754623301444,3.15,175.4,175.34,3.09]
[1754623302249,5.24455595,175.44,175.33,5.24455595]
[1754623302445,3.15,175.43,175.34,3.09]
[1754623302949,5.24455595,175.42,175.34,3.09]
[1754623303149,3.15,175.41,175.34,3.09]
[1754623303345,5.24455595,175.38,175.31,3.09]
[1754623303651,3.15,175.35,175.29,3.09]
[1754623303945,3.15,175.35,175.24,17.30147054]
[1754623303946,3.15,175.33,175.25,3.09]
[1754623304149,3.15,175.33,175.26,3.09]
[1754623304543,8.8524,175.33,175.26,8.7943]
[1754623304851,3.15,175.32,175.28,3.09]
[1754623306553,3.15,175.3,175.26,3.09]
[1754623306742,3.15,175.3,175.25,131.86539199]
[1754623307047,3.15,175.3,175.19,107.32]
[1754623307048,3.15,175.29,175.23,3.09]
[1754623307438,3.15,175.27,175.23,3.09]
[1754623307643,3.15,175.23,175.2,3.09]
[1754623307845,3.15,175.21,175.19,8.7968]
[1754623308247,3.15,175.2,175.19,3.09]
[1754623308640,3.15,175.2,175.18,128.18557581]
[1754623308845,3.15,175.2,175.16,5.7078]
[1754623309046,3.15,175.2,175.16,8.7978]
[1754623309950,3.15,175.2,175.11,112.54455595]
[1754623310146,3.15,175.2,175.16,3.09]
[1754623310345,10.95065595,175.22,175.18,5.7069]
[1754623310346,3.15,175.19,175.18,5.7069]
[1754623310748,3.15,175.19,175.17,3.09]
[1754623310946,3.15,175.19,175.17,8.7973]
[1754623311150,3.15,175.21,175.12,3.09]
[1754623311447,3.15,175.19,175.16,5.7076]
[1754623311647,3.15,175.19,175.12,3.09]
[1754623312045,3.15,175.17,175.1,133.69715355]
[1754623312244,3.15,175.17,175.1,130.60715355]
[1754623312439,3.15,175.17,175.11,3.09]
[1754623314252,3.15,175.17,175.16,5.7078]
[1754623314448,3.15,175.17,175.16,8.7978]
[1754623315049,5.24455595,175.22,175.18,5.707]
[1754623315244,5.24455595,175.22,175.16,3.09]
[1754623315449,3.15,175.17,175.16,3.09]
[1754623315752,3.15,175.17,175.14,3.09]
[1754623315948,3.15,175.17,175.15,3.09]
[1754623316154,3.15,175.17,175.16,8.7978]
[1754623316946,3.15,175.17,175.16,5.7078]
[1754623320057,5.24455595,175.2,175.17,5.7074]
[1754623320258,5.24455595,175.22,175.15,3.12648717]
[1754623320452,3.15,175.21,175.15,3.12648717]
[1754623320654,3.15,175.21,175.15,3.09]
[1754623321461,3.15,175.21,175.2,5.7065]
[1754623321659,3.15,175.21,175.2,8.9565]
[1754623322960,3.15,175.21,175.2,5.7065]
[1754623323657,5.24455595,175.27,175.23,5.7055]
[1754623324063,5.24455595,175.27,175.2,3.25]
[1754623324363,3.3,175.26,175.2,3.25]
[1754623324757,3.3,175.26,175.22,5.7057]
[1754623325056,3.3,175.25,175.22,5.7057]
[1754623325562,3.3,175.24,175.17,3.25]
[1754623325764,5.24455595,175.21,175.15,3.25]
[1754623325965,3.3,175.2,175.15,3.25]
[1754623326159,3.3,175.2,175.13,3.25]
[1754623327464,9.0066,175.2,175.13,3.25]
[1754623327664,3.3,175.19,175.11,3.25]
[1754623327865,3.3,175.19,175.12,3.25]
[1754623328368,3.3,175.16,175.1,130.60715355]
[1754623328758,3.3,175.14,175.09,3.25]
[1754623329464,5.24455595,175.13,175.09,3.25]
[1754623329665,3.3,175.12,175.07,3.25]
[1754623329861,3.3,175.1,175.07,3.25]
[1754623330061,3.3,175.1,175.07,8.9606]
[1754623330364,3.3,175.1,175.05,110.41]
[1754623330864,3.3,175.1,175.02,3.25]
[1754623331169,3.3,175.1,175.04,3.25]
[1754623331461,3.3,175.1,175.09,5.7101]
[1754623333168,8.54455595,175.1,175.05,3.25]
[1754623333365,3.3,175.09,175.05,3.25]
[1754623333570,3.3,175.09,175.06,5.7109]
[1754623333971,3.3,175.09,175.03,3.25]
[1754623334171,3.3,175.09,175.07,5.7107]
[1754623334370,3.3,175.09,175.03,3.25]
[1754623334773,3.3,175.09,175.07,5.7105]
[1754623335172,3.3,175.09,175.05,3.25]
[1754623335372,3.3,175.15,175.05,5.24455595]
[1754623335672,3.3,175.13,175.06,3.25]
[1754623336473,3.3,175.13,175.11,5.7094]
[1754623337675,3.3,175.13,175.12,5.7091]
[1754623338673,3.3,175.13,175.11,5.7094]
[1754623339271,118.5703,175.25,175.04,5.24455595]
[1754623339574,3.3,175.17,175.09,3.25]
[1754623339966,9.0077,175.17,175.13,5.7088]
[1754623340176,3.3,175.16,175.1,3.25]
[1754623341278,3.3,175.16,175.12,5.7089]
[1754623341578,5.24455595,175.16,175.06,5.24455595]
[1754623341775,5.24455595,175.16,175.02,11.4242]
[1754623341776,3.3,175.13,175.07,3.25]
[1754623341978,3.3,175.13,175.09,5.7099]
[1754623342178,3.3,175.13,175.07,3.25]
[1754623342576,3.3,175.12,175.08,8.9601]
[1754623342781,3.3,175.11,175.05,3.25]
[1754623343279,5.24455595,175.12,175.05,3.25]
[1754623343280,3.3,175.1,175.05,3.25]
[1754623343781,5.7098,175.1,175.06,5.7109]
[1754623343976,3.3,175.09,175.06,5.7109]
[1754623344176,3.3,175.08,175.06,8.9609]
[1754623344571,3.3,175.11,175.04,5.7116]
[1754623344777,5.24455595,175.1,175.03,3.25]
[1754623344977,3.3,175.09,175.03,3.25]
[1754623345276,5.7102,175.09,175.03,3.25]
[1754623345477,3.3,175.06,175.05,3.25]
[1754623346983,5.7102,175.09,175.05,3.25]
[1754623346984,3.3,175.08,175.05,3.25]
[1754623347280,3.3,175.07,175.06,3.25]
[1754623347580,3.3,175.07,175.06,8.9609]
[1754623348179,5.7097,175.11,175.08,5.7104]
[1754623348384,5.7097,175.11,175.06,3.25]
[1754623348385,3.3,175.1,175.09,3.25]
[1754623348678,5.24455595,175.14,175.09,3.25]
[1754623348878,3.3,175.13,175.1,5.7096]
[1754623349080,3.3,175.12,175.1,3.25]
[1754623349278,3.3,175.14,175.11,3.25]
[1754623349476,3.3,175.13,175.06,5.24455595]
[1754623349678,3.3,175.17,175.08,5.24455595]
[1754623350079,3.3,175.16,175.09,3.25]
[1754623350480,3.3,175.13,175.1,5.7096]
[1754623351287,5.7089,175.13,175.09,5.7101]
[1754623351486,3.3,175.12,175.06,3.25]
[1754623351789,3.3,175.12,175.1,5.7096]
[1754623351987,3.27,175.1,175.08,3.22]
[1754623352483,3.27,175.12,175.04,5.24455595]
[1754623352685,3.27,175.12,175.1,3.22]
[1754623352989,3.27,175.11,175.1,8.9296]
[1754623353185,5.24455595,175.17,175.12,3.22]
[1754623353388,3.27,175.14,175.13,3.22]
[1754623353786,3.27,175.16,175.09,3.22]
[1754623353985,5.708,175.16,175.12,5.7089]
[1754623354183,3.27,175.15,175.09,3.22]
[1754623354482,5.24455595,175.17,175.09,3.22]
[1754623354688,3.27,175.16,175.09,3.22]
[1754623354888,3.27,175.19,175.11,3.22]
[1754623355083,3.27,175.19,175.13,3.22]
[1754623355282,3.27,175.19,175.16,5.7076]
[1754623355989,8.9769,175.19,175.16,5.7076]
[1754623356189,3.27,175.18,175.16,5.7076]
[1754623356492,5.7067,175.2,175.17,5.7075]
[1754623356682,5.24455595,175.22,175.17,5.7075]
[1754623357095,3.27,175.21,175.17,5.7075]
[1754623357292,383.5,175.26,175.18,3.22]
[1754623357496,107.64,175.28,175.18,3.22]
[1754623357497,3.27,175.35,175.18,3.22]
[1754623357695,3.27,175.3,175.21,5.24455595]
[1754623357995,3.27,175.3,175.21,3.22]
[1754623358497,5.7038,175.29,175.24,5.705]
[1754623358689,3.27,175.28,175.24,3.22]
[1754623359091,3.27,175.27,175.26,5.7045]
[1754623359294,5.24455595,175.33,175.26,3.22]
[1754623359497,3.27,175.32,175.26,3.22]
[1754623359997,3.27,175.32,175.28,3.22]
[1754623360297,3.27,175.35,175.33,3.22]
[1754623360493,109.56,175.45,175.34,3.22]
[1754623360797,3.27,175.35,175.33,3.22]
[1754623360998,3.27,175.35,175.3,3.22]
[1754623361187,3.27,175.32,175.24,157.68450837]
[1754623361392,3.27,175.31,175.28,3.22]
[1754623361797,3.27,175.36,175.28,5.24455595]
[1754623361997,3.27,175.36,175.29,3.22]
[1754623362401,5.7013,175.37,175.31,5.7029]
[1754623362699,3.27,175.34,175.32,3.22]
[1754623362998,3.27,175.34,175.28,3.22]
[1754623363701,5.24455595,175.38,175.3,5.7032]
[1754623364000,3.27,175.34,175.3,3.22]
[1754623364203,3.27,175.44,175.3,3.22]
[1754623364389,5.24455595,175.42,175.32,3.22]
[1754623364697,3.27,175.43,175.34,5.24455595]
[1754623364996,3.27,175.42,175.36,5.24455595]
[1754623365200,3.27,175.46,175.39,3.22]
[1754623365390,3.27,175.46,175.41,5.6994]
[1754623365594,3.27,175.5,175.42,3.22]
[1754623365794,3.27,175.5,175.42,5.24455595]
[1754623366000,5.6974,175.49,175.44,5.6987]
[1754623366296,3.27,175.48,175.44,3.22]
[1754623366496,5.6981,175.46,175.41,10.94415595]
[1754623366795,5.24455595,175.51,175.32,3.22]
[1754623366796,3.27,175.51,175.32,3.22]
[1754623366997,3.27,175.51,175.44,5.24455595]
[1754623367199,3.27,175.49,175.47,3.22]
[1754623367699,3.27,175.51,175.44,5.24455595]
[1754623367901,3.27,175.51,175.45,3.22]
[1754623368105,3.27,175.51,175.46,3.22]
[1754623368288,3.27,175.53,175.46,3.22]
[1754623368800,3.27,175.51,175.49,3.22]
[1754623369000,3.27,175.5,175.47,3.22]
[1754623369196,5.696,175.53,175.36,3.22]
[1754623369397,3.27,175.52,175.45,8.46455595]
[1754623369796,3.27,175.52,175.46,3.22]
[1754623369999,0.03596433,175.5,175.47,0.03962355]
[1754623370188,3.27,175.49,175.47,0.03962355]
[1754623370393,3.27,175.48,175.47,0.03962355]
[1754623372698,0.03596433,175.5,175.47,3.25962355]
[1754623372896,3.27,175.49,175.47,3.25962355]
[1754623373104,5.73296433,175.5,175.47,0.03962355]
[1754623373298,0.03596433,175.5,175.47,3.25962355]
[1754623373500,3.30596433,175.5,175.48,3.22]
[1754623374299,3.27,175.49,175.48,3.22]
[1754623374497,3.27,175.49,175.47,0.03962355]
[1754623374697,3.27,175.48,175.47,0.03962355]
[1754623375397,0.03596433,175.5,175.47,0.03962355]
[1754623375891,238.21502875,175.57,175.5,5.6967]
[1754623376092,232.52032875,175.57,175.51,3.22]
[1754623376296,3.27,175.56,175.48,3.22]
[1754623376494,3.27,175.54,175.48,14.16205595]
[1754623376799,3.27,175.54,175.48,3.22]
[1754623376996,3.27,175.54,175.47,5.6978]
[1754623377197,3.27,175.54,175.49,0.03697849]
[1754623377591,5.24455595,175.52,175.49,0.03697849]
[1754623377807,3.27,175.51,175.49,0.03697849]
[1754623378299,5.24455595,175.54,175.39,20.02186785]
[1754623378300,3.27,175.49,175.41,3.22]
[1754623378497,3.27,175.47,175.41,3.22]
[1754623378703,3.27,175.47,175.41,5.6995]
[1754623378902,3.27,175.47,175.38,3.22]
[1754623379392,3.27,175.47,175.39,5.24455595]
[1754623379593,3.27,175.53,175.35,3.22]
[1754623379797,3.27,175.5,175.42,3.22]
[1754623379998,3.27,175.49,175.42,3.22]
[1754623380294,3.27,175.49,175.45,5.6983]
[1754623380500,3.27,175.49,175.43,3.22]
[1754623380702,3.27,175.49,175.47,5.6977]
[1754623380900,3.27,175.52,175.46,5.24455595]
[1754623381101,3.27,175.52,175.47,3.22]
[1754623381401,3.27,175.56,175.5,3.22]
[1754623381992,3.16,175.55,175.5,8.9168]
[1754623382199,3.16,175.53,175.45,3.06]
[1754623382397,5.24455595,175.52,175.45,3.06]
[1754623382597,3.16,175.49,175.41,3.06]
[1754623382798,5.24455595,175.46,175.39,3.06]
[1754623383000,3.16,175.45,175.34,410.70675062]
[1754623383196,3.16,175.43,175.35,3.06]
[1754623383800,5.24455595,175.48,175.39,3.06]
[1754623384106,3.16,175.47,175.39,3.06]
[1754623384605,3.16,175.47,175.41,3.06]
[1754623384997,3.16,175.47,175.43,5.699]
[1754623385196,3.16,175.47,175.28,22.12674795]
[1754623385404,3.16,175.51,175.37,3.06]
[1754623385600,3.16,175.43,175.37,3.06]
[1754623388004,3.16,175.47,175.39,3.06]
[1754623388205,3.16,175.47,175.41,3.06]
[1754623389909,3.16,175.47,175.45,5.6984]
[1754623390410,3.16,175.49,175.45,5.6983]
[1754623390709,3.16,175.48,175.42,3.06]
[1754623390906,3.16,175.48,175.46,5.698]
[1754623391105,3.16,175.47,175.46,5.698]
[1754623392006,3.16,175.5,175.45,3.06]
[1754623392206,3.16,175.53,175.45,3.06]
[1754623392408,3.16,175.53,175.49,5.6972]
[1754623392800,3.16,175.53,175.46,3.06]
[1754623393004,3.16,175.53,175.46,8.30455595]
[1754623393199,3.16,175.53,175.47,3.06]
[1754623393410,3.16,175.55,175.54,5.6957]
[1754623393810,232.52032875,175.57,175.54,3.06]
[1754623394010,3.16,175.56,175.55,5.6954]
[1754623394206,232.52032875,175.57,175.54,3.06]
[1754623394411,235.68032875,175.57,175.55,5.695]
[1754623394816,3.16,175.56,175.55,5.695]
[1754623395308,235.68032875,175.57,175.56,5.695]
[1754623395516,3.16,175.56,175.45,3.06]
[1754623395714,3.16,175.56,175.54,3.06]
[1754623395915,3.16,175.56,175.55,3.06]
[1754623396214,232.52032875,175.57,175.56,8.755]
[1754623398617,235.68032875,175.57,175.56,5.695]
[1754623398812,3.16,175.56,175.55,5.6953]
[1754623399011,235.68032875,175.57,175.54,5.24455595]
[1754623399214,232.52032875,175.57,175.56,5.695]
[1754623399414,232.52032875,175.57,175.56,8.755]
[1754623400307,235.68032875,175.57,175.55,5.6952]
[1754623400513,3.16,175.56,175.55,5.6952]
[1754623404816,3.16,175.72,175.55,10.4891119]
[1754623405019,4.06348066,175.73,175.56,3.06]
[1754623405318,3.16,175.71,175.57,3.06]
[1754623405514,3.16,175.69,175.64,5.24455595]
[1754623405714,123.34,175.7,175.66,3.06]
[1754623405715,3.16,175.68,175.66,3.06]
[1754623405911,3.16,175.71,175.68,5.691]
[1754623406114,3.16,175.69,175.68,5.691]
[1754623406321,3.16,175.69,175.66,8.30455595]
[1754623406510,3.16,175.69,175.67,3.06]
[1754623406711,3.16,175.72,175.67,0.04340418]
[1754623406919,3.16,175.7,175.67,3.10340418]
[1754623407226,3.16,175.72,175.68,5.24455595]
[1754623407417,3.16,175.72,175.67,0.04340418]
[1754623407616,4.06348066,175.73,175.67,0.04340418]
[1754623407815,3.16,175.71,175.67,0.04340418]
[1754623408121,8.40455595,175.71,175.67,0.04340418]
[1754623408423,3.16,175.68,175.58,5.24455595]
[1754623408616,3.16,175.66,175.58,8.30455595]
[1754623408918,3.16,175.65,175.59,3.06]
[1754623409117,3.16,175.65,175.53,3.06]
[1754623409318,3.16,175.64,175.55,3.06]
[1754623409520,5.24455595,175.62,175.52,3.06]
[1754623409727,3.16,175.59,175.46,3.06]
[1754623410019,3.16,175.55,175.47,3.06]
[1754623410220,5.696,175.54,175.45,3.06]
[1754623410421,3.16,175.53,175.45,3.06]
[1754623410720,3.16,175.53,175.46,5.24455595]
[1754623410926,3.16,175.53,175.5,3.06]
[1754623411223,3.16,175.57,175.51,3.06]
[1754623411623,3.16,175.57,175.52,5.6963]
[1754623411818,3.0,175.55,175.52,8.9563]
[1754623412018,3.0,175.57,175.45,3.26]
[1754623412219,3.0,175.57,175.55,5.24455595]
[1754623412523,3.0,175.65,175.55,8.50455595]
[1754623412718,3.0,175.65,175.57,5.24455595]
[1754623412925,3.0,175.65,175.59,5.24455595]
[1754623413123,382.68,175.66,175.61,5.6932]
[1754623413322,3.0,175.63,175.6,3.26]
[1754623413523,3.0,175.63,175.61,5.24455595]
[1754623413822,3.0,175.63,175.62,5.6931]
[1754623415521,3.0,175.65,175.6,3.26]
[1754623415823,3.0,175.72,175.6,3.26]
[1754623416025,3.0,175.72,175.66,5.6915]
[1754623416227,3.0,175.72,175.62,11.20578932]
[1754623416228,3.0,175.72,175.62,3.26]
[1754623416418,3.0,175.72,175.61,3.26]
[1754623416619,3.0,175.72,175.67,5.6912]
[1754623416829,3.0,175.72,175.61,3.26]
[1754623417023,3.0,175.72,175.61,11.20578932]
[1754623417418,8.69,175.72,175.61,11.20578932]
[1754623417727,3.0,175.72,175.69,5.6906]
[1754623417919,3.0,175.72,175.64,3.26]
[1754623419126,3.0,175.72,175.68,5.691]
[1754623419428,3.0,175.72,175.64,3.26]
[1754623419629,3.0,175.72,175.66,7.94578932]
[1754623419827,4.06348066,175.73,175.56,7.94578932]
[1754623420129,3.0,175.71,175.68,3.26]
[1754623420320,3.0,175.72,175.68,3.26]
[1754623420525,7.06348066,175.73,175.67,3.26]
[1754623420727,4.06348066,175.73,175.67,3.26]
[1754623420925,7.06348066,175.73,175.67,3.26]
[1754623421128,3.0,175.72,175.66,3.26]
[1754623421730,7.94578932,175.71,175.59,3.26]
[1754623421925,3.0,175.7,175.59,3.26]
[1754623422429,3.0,175.66,175.59,3.26]
[1754623422629,3.0,175.65,175.56,3.26]
[1754623422921,3.0,175.65,175.52,196.47266868]
[1754623423227,3.0,175.62,175.53,3.26]
[1754623423624,5.6936,175.61,175.53,3.26]
[1754623423825,3.0,175.6,175.53,3.26]
[1754623424026,3.0,175.6,175.52,188.52687936]
[1754623424321,3.0,175.59,175.54,5.6957]
[1754623424527,3.0,175.59,175.52,188.52687936]
[1754623424728,3.0,175.59,175.52,5.6964]
[1754623424924,7.94578932,175.68,175.5,3.26]
[1754623424925,3.0,175.57,175.5,3.26]
[1754623425129,3.0,175.57,175.46,124.3]
[1754623425426,3.0,175.55,175.5,5.6968]
[1754623425726,3.0,175.55,175.51,5.6968]
[1754623426731,3.0,175.51,175.42,3.26]
[1754623426930,3.0,175.48,175.42,3.26]
[1754623427128,3.0,175.47,175.43,3.26]
[1754623427327,3.0,175.47,175.44,3.26]
[1754623427627,3.0,175.46,175.42,3.26]
[1754623428932,3.0,175.43,175.35,3.26]
[1754623430223,3.0,175.43,175.42,5.6997]
[1754623430630,3.0,175.46,175.45,5.6987]
[1754623430832,3.0,175.51,175.42,3.26]
[1754623431326,3.0,175.51,175.46,5.6982]
[1754623431632,3.0,175.48,175.37,3.26]
[1754623431828,3.0,175.45,175.37,3.26]
[1754623432032,7.94578932,175.46,175.31,125.83234356]
[1754623432033,3.0,175.42,175.32,3.26]
[1754623432629,3.0,175.42,175.32,11.20578932]
[1754623432832,3.0,175.42,175.38,5.7008]
[1754623433034,3.0,175.4,175.33,3.26]
[1754623433331,3.0,175.4,175.39,5.7007]
[1754623433629,3.0,175.42,175.36,3.26]
[1754623434033,3.0,175.44,175.36,3.26]
[1754623434432,3.0,175.44,175.33,3.26]
[1754623435339,3.0,175.41,175.33,3.26]
[1754623436028,3.0,175.41,175.4,5.7003]
[1754623436435,3.0,175.41,175.35,3.26]
[1754623436631,3.0,175.41,175.39,5.7005]
[1754623436828,124.96,175.53,175.35,3.26]
[1754623437032,7.94578932,175.45,175.32,3.26]
[1754623437234,3.0,175.44,175.33,3.26]
[1754623437735,3.0,175.44,175.39,5.7006]
[1754623438134,3.0,175.44,175.31,128.1]
[1754623438330,3.0,175.38,175.31,128.1]
[1754623439335,7.94578932,175.41,175.36,5.7015]
[1754623439537,3.0,175.37,175.36,5.7015]
[1754623440227,3.0,175.35,175.31,128.1]
[1754623440433,3.0,175.34,175.31,124.84]
[1754623440632,3.0,175.4,175.32,3.26]
[1754623441139,3.0,175.38,175.31,124.84]
[1754623441333,3.0,175.38,175.34,5.702]
[1754623441542,3.0,175.38,175.28,3.26]
[1754623441836,7.94578932,175.37,175.3,5.7035]
[1754623442040,3.29,175.36,175.28,3.26]
[1754623442233,3.29,175.36,175.29,3.31]
[1754623442432,3.29,175.35,175.3,3.31]
[1754623442637,3.29,175.35,175.32,3.31]
[1754623442939,3.29,175.35,175.34,5.7023]
[1754623443635,3.29,175.34,175.33,5.7025]
[1754623444032,7.94578932,175.4,175.3,3.31]
[1754623444236,3.29,175.33,175.3,3.31]
[1754623444642,32.24657478,175.49,175.25,7.94578932]
[1754623444845,3.29,175.34,175.31,3.31]
[1754623445032,7.94578932,175.4,175.31,3.31]
[1754623445345,3.29,175.32,175.29,3.31]
[1754623445638,3.29,175.48,175.29,3.31]
[1754623445935,7.94578932,175.4,175.29,3.31]
[1754623446243,3.29,175.39,175.29,3.31]
[1754623446638,7.94578932,175.42,175.3,7.94578932]
[1754623446838,3.29,175.38,175.35,3.31]
[1754623447035,32.24657478,175.49,175.36,3.31]
[1754623447036,3.29,175.44,175.36,3.31]
[1754623447645,3.29,175.44,175.39,5.7005]
[1754623448141,3.29,175.43,175.39,5.7007]
[1754623448543,3.29,175.43,175.35,3.31]
[1754623449640,3.29,175.41,175.33,3.31]
[1754623449849,3.29,175.38,175.29,3.31]